fUST/lending_fUST_20260604
["ID","MTS","AMOUNT","RATE_DAILY","PERIOD"]
[423982158,1780534232000,-300.0,0.00011503,2]
[423982162,1780534232000,-300.0,0.00011503,2]
[423982163,1780534232000,-300.0,0.00011503,2]
[423982156,1780534232000,-1200.0,0.00011277,2]
[423982157,1780534232000,-10000.0,0.00011278,2]
[423982152,1780534232000,-5000.0,0.00010832,2]
[423982154,1780534232000,-1147.55964153,0.00010941,2]
[423982182,1780534232000,-2220.9630244,0.00012229,2]
[423982175,1780534232000,-300.0,0.00011503,2]
[423982180,1780534232000,-600.0,0.00011732,2]
[423982159,1780534232000,-300.0,0.00011503,2]
[423982189,1780534232000,-42.15180284,0.00012328,2]
[423982187,1780534232000,-500.0,0.00012328,2]
[423982205,1780534232000,-190.03203743,0.00012328,2]
[423982204,1780534232000,-500.0,0.00012328,2]
[423982206,1780534232000,-309.96796257,0.00012328,2]
[423982202,1780534232000,-500.0,0.00012328,2]
[423982207,1780534232000,-5419.48,0.00012329,2]
[423982208,1780534232000,-12275.47,0.00012329,2]
[423982203,1780534232000,-500.0,0.00012328,2]
[423982200,1780534232000,-178.56393748,0.00012328,2]
[423982199,1780534232000,-500.0,0.00012328,2]
[423982198,1780534232000,-500.0,0.00012328,2]
[423982209,1780534232000,-9794.09724177,0.00012329,2]
[423982194,1780534232000,-500.0,0.00012328,2]
[423982197,1780534232000,-500.0,0.00012328,2]
[423982192,1780534232000,-500.0,0.00012328,2]
[423982196,1780534232000,-500.0,0.00012328,2]
[423982195,1780534232000,-500.0,0.00012328,2]
[423982193,1780534232000,-500.0,0.00012328,2]
[423982190,1780534232000,-433.45811007,0.00012328,2]
[423982201,1780534232000,-500.0,0.00012328,2]
[423982191,1780534232000,-24.39008709,0.00012328,2]
[423982186,1780534232000,-500.0,0.00012328,2]
[423982188,1780534232000,-500.0,0.00012328,2]
[423982179,1780534232000,-151.0,0.00011603,2]
[423982276,1780534238000,-6381.8,0.00012329,2]
[423982272,1780534238000,-9189.8,0.00012329,2]
[423982274,1780534238000,-7658.17,0.00012329,2]
[423982271,1780534238000,-11027.76,0.00012329,2]
[423982269,1780534238000,-3439.21275823,0.00012329,2]
[423982338,1780534239000,-500.0,0.00013698,2]
[423982344,1780534239000,-500.0,0.00013698,2]
[423982340,1780534239000,-500.0,0.00013698,2]
[423982353,1780534239000,-189.7669307,0.00013698,2]
[423982342,1780534239000,-500.0,0.00013698,2]
[423982351,1780534239000,-196.38305141,0.00013698,2]
[423982336,1780534239000,-500.0,0.00013698,2]
[423982355,1780534239000,-500.0,0.00013698,2]
[423982346,1780534239000,-500.0,0.00013698,2]
[423982347,1780534239000,-500.0,0.00013698,2]
[423982349,1780534239000,-500.0,0.00013698,2]
[423982357,1780534239000,-500.0,0.00013698,2]
[423982361,1780534239000,-500.0,0.00013698,2]
[423982379,1780534239000,-500.0,0.00013698,2]
[423982365,1780534239000,-500.0,0.00013698,2]
[423982366,1780534239000,-500.0,0.00013698,2]
[423982359,1780534239000,-500.0,0.00013698,2]
[423982373,1780534239000,-500.0,0.00013698,2]
[423982374,1780534239000,-500.0,0.00013698,2]
[423982370,1780534239000,-500.0,0.00013698,2]
[423982369,1780534239000,-500.0,0.00013698,2]
[423982380,1780534239000,-500.0,0.00013698,2]
[423982376,1780534239000,-645.30411298,0.00013698,2]
[423982382,1780534239000,-500.0,0.00013698,2]
[423982395,1780534239000,-500.0,0.00013698,2]
[423982334,1780534239000,-500.0,0.00013698,2]
[423982397,1780534239000,-500.0,0.00013698,2]
[423982363,1780534239000,-500.0,0.00013698,2]
[423982329,1780534239000,-238.68522192,0.00013697,2]
[423982301,1780534239000,-443.47,0.00013592,2]
[423982323,1780534239000,-151.0,0.0001369,2]
[423982384,1780534239000,-500.0,0.00013698,2]
[423982280,1780534239000,-4431.81,0.00012329,2]
[423982278,1780534239000,-5318.17,0.00012329,2]
[423982281,1780534239000,-3693.17,0.00012329,2]
[423982283,1780534239000,-2220.96302437,0.0001286,2]
[423982285,1780534239000,-720.0,0.00012905,2]
[423982289,1780534239000,-221.73,0.00012944,2]
[423982291,1780534239000,-217.4000183,0.00012968,2]
[423982293,1780534239000,-338.35780882,0.00013318,2]
[423982295,1780534239000,-252.85286502,0.00013365,14]
[423982288,1780534239000,-443.47,0.00012944,2]
[423982299,1780534239000,-164.80993619,0.00013572,2]
[423982297,1780534239000,-2220.96302437,0.00013491,2]
[423982303,1780534239000,-152.0,0.00013656,7]
[423982307,1780534239000,-152.0,0.0001366,7]
[423982305,1780534239000,-152.0,0.00013656,7]
[423982309,1780534239000,-151.0,0.0001369,2]
[423982310,1780534239000,-151.0,0.0001369,2]
[423982314,1780534239000,-151.0,0.0001369,2]
[423982321,1780534239000,-151.0,0.0001369,2]
[423982316,1780534239000,-151.0,0.0001369,2]
[423982312,1780534239000,-151.0,0.0001369,2]
[423982319,1780534239000,-151.0,0.0001369,2]
[423982317,1780534239000,-151.0,0.0001369,2]
[423982327,1780534239000,-189.62753176,0.0001369,2]
[423982332,1780534239000,-500.0,0.00013697,2]
[423982325,1780534239000,-151.0,0.0001369,2]
[423982330,1780534239000,-271.00222809,0.00013697,2]
[423982399,1780534239000,-593.41107147,0.00013698,2]
[423982412,1780534239000,-500.0,0.00013698,2]
[423982402,1780534239000,-500.0,0.00013698,2]
[423982467,1780534239000,-641.76372271,0.00013698,2]
[423982459,1780534239000,-500.0,0.00013698,2]
[423982465,1780534239000,-166.73327584,0.00013698,2]
[423982466,1780534239000,-500.0,0.00013698,2]
[423982468,1780534239000,-500.0,0.00013698,2]
[423982461,1780534239000,-500.0,0.00013698,2]
[423982469,1780534239000,-500.0,0.00013698,2]
[423982460,1780534239000,-500.0,0.00013698,2]
[423982463,1780534239000,-500.0,0.00013698,2]
[423982462,1780534239000,-500.0,0.00013698,2]
[423982479,1780534239000,-500.0,0.00013698,2]
[423982470,1780534239000,-500.0,0.00013698,2]
[423982483,1780534239000,-500.0,0.00013698,2]
[423982464,1780534239000,-500.0,0.00013698,2]
[423982480,1780534239000,-500.0,0.00013698,2]
[423982471,1780534239000,-500.0,0.00013698,2]
[423982472,1780534239000,-500.0,0.00013698,2]
[423982474,1780534239000,-500.0,0.00013698,2]
[423982476,1780534239000,-500.0,0.00013698,2]
[423982478,1780534239000,-500.0,0.00013698,2]
[423982475,1780534239000,-500.0,0.00013698,2]
[423982473,1780534239000,-500.0,0.00013698,2]
[423982477,1780534239000,-500.0,0.00013698,2]
[423982484,1780534239000,-500.0,0.00013698,2]
[423982487,1780534239000,-500.0,0.00013698,2]
[423982486,1780534239000,-582.14,0.00013698,2]
[423982400,1780534239000,-500.0,0.00013698,2]
[423982485,1780534239000,-500.0,0.00013698,2]
[423982482,1780534239000,-500.0,0.00013698,2]
[423982457,1780534239000,-500.0,0.00013698,2]
[423982481,1780534239000,-500.0,0.00013698,2]
[423982456,1780534239000,-500.0,0.00013698,2]
[423982388,1780534239000,-500.0,0.00013698,2]
[423982458,1780534239000,-163.88,0.00013698,2]
[423982390,1780534239000,-500.0,0.00013698,2]
[423982392,1780534239000,-500.0,0.00013698,2]
[423982406,1780534239000,-500.0,0.00013698,2]
[423982404,1780534239000,-500.0,0.00013698,2]
[423982408,1780534239000,-500.0,0.00013698,2]
[423982410,1780534239000,-500.0,0.00013698,2]
[423982414,1780534239000,-500.0,0.00013698,2]
[423982421,1780534239000,-500.0,0.00013698,2]
[423982424,1780534239000,-500.0,0.00013698,2]
[423982426,1780534239000,-500.0,0.00013698,2]
[423982429,1780534239000,-500.0,0.00013698,2]
[423982428,1780534239000,-500.0,0.00013698,2]
[423982431,1780534239000,-500.0,0.00013698,2]
[423982441,1780534239000,-500.0,0.00013698,2]
[423982446,1780534239000,-500.0,0.00013698,2]
[423982443,1780534239000,-500.0,0.00013698,2]
[423982455,1780534239000,-568.18437267,0.00013698,2]
[423982454,1780534239000,-500.0,0.00013698,2]
[423982433,1780534239000,-500.0,0.00013698,2]
[423982451,1780534239000,-504.57813918,0.00013698,2]
[423982452,1780534239000,-500.0,0.00013698,2]
[423982437,1780534239000,-544.05994,0.00013698,2]
[423982435,1780534239000,-500.0,0.00013698,2]
[423982449,1780534239000,-500.0,0.00013698,2]
[423982439,1780534239000,-500.0,0.00013698,2]
[423982386,1780534239000,-500.0,0.00013698,2]
[423982537,1780534240000,-500.0,0.00013698,2]
[423982538,1780534240000,-500.0,0.00013698,2]
[423982536,1780534240000,-500.0,0.00013698,2]
[423982540,1780534240000,-500.0,0.00013698,2]
[423982528,1780534240000,-502.34078773,0.00013698,2]
[423982526,1780534240000,-596.10476254,0.00013698,2]
[423982523,1780534240000,-500.0,0.00013698,2]
[423982525,1780534240000,-283.27611127,0.00013698,2]
[423982521,1780534240000,-500.0,0.00013698,2]
[423982532,1780534240000,-500.0,0.00013698,2]
[423982516,1780534240000,-500.0,0.00013698,2]
[423982529,1780534240000,-500.0,0.00013698,2]
[423982531,1780534240000,-1060.41,0.00013698,2]
[423982549,1780534240000,-500.0,0.00013698,2]
[423982530,1780534240000,-500.0,0.00013698,2]
[423982533,1780534240000,-500.0,0.00013698,2]
[423982535,1780534240000,-495.0,0.00013698,2]
[423982541,1780534240000,-500.0,0.00013698,2]
[423982543,1780534240000,-500.69855527,0.00013698,2]
[423982542,1780534240000,-500.0,0.00013698,2]
[423982547,1780534240000,-500.0,0.00013698,2]
[423982546,1780534240000,-500.0,0.00013698,2]
[423982548,1780534240000,-568.87424883,0.00013698,2]
[423982545,1780534240000,-500.0,0.00013698,2]
[423982544,1780534240000,-500.0,0.00013698,2]
[423982551,1780534240000,-500.0,0.00013698,2]
[423982517,1780534240000,-500.0,0.00013698,2]
[423982534,1780534240000,-500.0,0.00013698,2]
[423982522,1780534240000,-501.47277069,0.00013698,2]
[423982497,1780534240000,-500.0,0.00013698,2]
[423982519,1780534240000,-500.0,0.00013698,2]
[423982561,1780534240000,-500.0,0.00013698,2]
[423982495,1780534240000,-500.0,0.00013698,2]
[423982492,1780534240000,-500.0,0.00013698,2]
[423982489,1780534240000,-500.0,0.00013698,2]
[423982488,1780534240000,-500.0,0.00013698,2]
[423982493,1780534240000,-500.0,0.00013698,2]
[423982491,1780534240000,-500.0,0.00013698,2]
[423982496,1780534240000,-500.0,0.00013698,2]
[423982490,1780534240000,-293.41706525,0.00013698,2]
[423982494,1780534240000,-421.8,0.00013698,2]
[423982498,1780534240000,-163.82146586,0.00013698,2]
[423982499,1780534240000,-500.0,0.00013698,2]
[423982511,1780534240000,-1054.7903,0.00013698,2]
[423982510,1780534240000,-500.0,0.00013698,2]
[423982513,1780534240000,-500.0,0.00013698,2]
[423982512,1780534240000,-500.0,0.00013698,2]
[423982500,1780534240000,-500.0,0.00013698,2]
[423982502,1780534240000,-598.83,0.00013698,2]
[423982506,1780534240000,-500.0,0.00013698,2]
[423982504,1780534240000,-500.0,0.00013698,2]
[423982501,1780534240000,-500.0,0.00013698,2]
[423982507,1780534240000,-500.0,0.00013698,2]
[423982505,1780534240000,-500.0,0.00013698,2]
[423982503,1780534240000,-500.0,0.00013698,2]
[423982515,1780534240000,-152.71657739,0.00013698,2]
[423982514,1780534240000,-500.0,0.00013698,2]
[423982518,1780534240000,-500.0,0.00013698,2]
[423982520,1780534240000,-5213.07,0.00013698,2]
[423982524,1780534240000,-500.0,0.00013698,2]
[423982527,1780534240000,-500.0,0.00013698,2]
[423982562,1780534240000,-500.0,0.00013698,2]
[423982550,1780534240000,-500.0,0.00013698,2]
[423982554,1780534240000,-500.0,0.00013698,2]
[423982594,1780534240000,-500.0,0.00013972,2]
[423982604,1780534240000,-280.49345,0.00013972,2]
[423982605,1780534240000,-500.0,0.00013972,2]
[423982606,1780534240000,-500.0,0.00013972,2]
[423982596,1780534240000,-500.0,0.00013972,2]
[423982597,1780534240000,-500.0,0.00013972,2]
[423982600,1780534240000,-472.3487318,0.00013972,2]
[423982601,1780534240000,-500.0,0.00013972,2]
[423982599,1780534240000,-567.66208022,0.00013972,2]
[423982598,1780534240000,-500.0,0.00013972,2]
[423982595,1780534240000,-500.0,0.00013972,2]
[423982603,1780534240000,-559.546742,0.00013972,2]
[423982602,1780534240000,-500.0,0.00013972,2]
[423982589,1780534240000,-500.0,0.00013972,2]
[423982607,1780534240000,-500.0,0.00013972,2]
[423982616,1780534240000,-500.0,0.00013972,2]
[423982619,1780534240000,-500.0,0.00013972,2]
[423982617,1780534240000,-199.39774311,0.00013972,2]
[423982618,1780534240000,-560.63,0.00013972,2]
[423982609,1780534240000,-500.0,0.00013972,2]
[423982614,1780534240000,-244.85244127,0.00013972,2]
[423982613,1780534240000,-500.0,0.00013972,2]
[423982611,1780534240000,-500.0,0.00013972,2]
[423982610,1780534240000,-500.0,0.00013972,2]
[423982615,1780534240000,-500.0,0.00013972,2]
[423982612,1780534240000,-500.0,0.00013972,2]
[423982621,1780534240000,-500.0,0.00013972,2]
[423982620,1780534240000,-500.0,0.00013972,2]
[423982608,1780534240000,-582.14,0.00013972,2]
[423982593,1780534240000,-500.0,0.00013972,2]
[423982552,1780534240000,-190.3,0.00013698,2]
[423982591,1780534240000,-580.13231628,0.00013972,2]
[423982560,1780534240000,-500.0,0.00013698,2]
[423982557,1780534240000,-290.79493899,0.00013698,2]
[423982553,1780534240000,-502.41791697,0.00013698,2]
[423982555,1780534240000,-502.22144043,0.00013698,2]
[423982558,1780534240000,-500.0,0.00013698,2]
[423982559,1780534240000,-500.0,0.00013698,2]
[423982556,1780534240000,-500.22658779,0.00013698,2]
[423982564,1780534240000,-500.22305158,0.00013698,2]
[423982588,1780534240000,-500.0,0.00013972,2]
[423982566,1780534240000,-703.5,0.00013698,2]
[423982576,1780534240000,-500.0,0.00013698,2]
[423982573,1780534240000,-500.0,0.00013698,2]
[423982565,1780534240000,-500.0,0.00013698,2]
[423982571,1780534240000,-500.0,0.00013698,2]
[423982563,1780534240000,-500.0,0.00013698,2]
[423982577,1780534240000,-500.0,0.00013698,2]
[423982575,1780534240000,-676.97,0.00013698,2]
[423982592,1780534240000,-500.0,0.00013972,2]
[423982590,1780534240000,-500.0,0.00013972,2]
[423982582,1780534240000,-500.0,0.00013799,2]
[423982585,1780534240000,-151.0,0.000139,2]
[423982583,1780534240000,-15411.1642325,0.000138,2]
[423982586,1780534240000,-500.0,0.00013972,2]
[423982580,1780534240000,-500.0,0.00013698,2]
[423982581,1780534240000,-151.0,0.000137,2]
[423982579,1780534240000,-500.0,0.00013698,2]
[423982567,1780534240000,-500.0,0.00013698,2]
[423982574,1780534240000,-500.87883735,0.00013698,2]
[423982569,1780534240000,-941.91,0.00013698,2]
[423982584,1780534240000,-151.0,0.000138,2]
[423982667,1780534241000,-500.0,0.00014246,2]
[423982665,1780534241000,-500.0,0.00014246,2]
[423982666,1780534241000,-500.0,0.00014246,2]
[423982669,1780534241000,-500.0,0.00014246,2]
[423982664,1780534241000,-500.0,0.00014246,2]
[423982659,1780534241000,-151.0,0.00014,2]
[423982663,1780534241000,-151.0,0.000142,2]
[423982661,1780534241000,-2220.96302437,0.00014121,2]
[423982660,1780534241000,-151.0,0.000141,2]
[423982656,1780534241000,-500.0,0.00013972,2]
[423982657,1780534241000,-500.0,0.00013972,2]
[423982662,1780534241000,-864.0,0.00014196,2]
[423982670,1780534241000,-500.0,0.00014246,2]
[423982680,1780534241000,-500.0,0.00014246,2]
[423982671,1780534241000,-500.0,0.00014246,2]
[423982672,1780534241000,-500.0,0.00014246,2]
[423982673,1780534241000,-500.0,0.00014246,2]
[423982674,1780534241000,-500.0,0.00014246,2]
[423982685,1780534241000,-502.12816081,0.00014246,2]
[423982684,1780534241000,-500.0,0.00014246,2]
[423982676,1780534241000,-582.14,0.00014246,2]
[423982675,1780534241000,-500.0,0.00014246,2]
[423982678,1780534241000,-500.0,0.00014246,2]
[423982679,1780534241000,-500.0,0.00014246,2]
[423982677,1780534241000,-500.0,0.00014246,2]
[423982683,1780534241000,-268.0359621,0.00014246,2]
[423982681,1780534241000,-500.0,0.00014246,2]
[423982651,1780534241000,-703.5,0.00013972,2]
[423982668,1780534241000,-500.0,0.00014246,2]
[423982652,1780534241000,-941.91,0.00013972,2]
[423982637,1780534241000,-500.0,0.00013972,2]
[423982653,1780534241000,-500.0,0.00013972,2]
[423982682,1780534241000,-500.0,0.00014246,2]
[423982631,1780534241000,-1060.41,0.00013972,2]
[423982633,1780534241000,-500.0,0.00013972,2]
[423982622,1780534241000,-500.0,0.00013972,2]
[423982628,1780534241000,-500.0,0.00013972,2]
[423982625,1780534241000,-500.0,0.00013972,2]
[423982627,1780534241000,-531.40014633,0.00013972,2]
[423982624,1780534241000,-500.0,0.00013972,2]
[423982626,1780534241000,-5213.07,0.00013972,2]
[423982623,1780534241000,-996.4577,0.00013972,2]
[423982630,1780534241000,-500.71825508,0.00013972,2]
[423982635,1780534241000,-500.0,0.00013972,2]
[423982636,1780534241000,-500.0,0.00013972,2]
[423982634,1780534241000,-500.0,0.00013972,2]
[423982646,1780534241000,-618.84274705,0.00013972,2]
[423982645,1780534241000,-500.0,0.00013972,2]
[423982638,1780534241000,-500.0,0.00013972,2]
[423982641,1780534241000,-500.0,0.00013972,2]
[423982644,1780534241000,-500.0,0.00013972,2]
[423982640,1780534241000,-500.0,0.00013972,2]
[423982639,1780534241000,-500.0,0.00013972,2]
[423982642,1780534241000,-500.0,0.00013972,2]
[423982643,1780534241000,-342.38284647,0.00013972,2]
[423982648,1780534241000,-500.0,0.00013972,2]
[423982658,1780534241000,-529.11,0.00013972,2]
[423982647,1780534241000,-500.0,0.00013972,2]
[423982649,1780534241000,-500.0,0.00013972,2]
[423982650,1780534241000,-362.22094425,0.00013972,2]
[423982655,1780534241000,-500.0,0.00013972,2]
[423982654,1780534241000,-676.97,0.00013972,2]
[423982632,1780534241000,-500.0,0.00013972,2]
[423982687,1780534241000,-500.0,0.00014246,2]
[423982698,1780534241000,-500.0,0.00014246,2]
[423982721,1780534241000,-277.94,0.0001452,2]
[423982734,1780534241000,-500.0,0.0001452,2]
[423982733,1780534241000,-500.0,0.0001452,2]
[423982723,1780534241000,-500.0,0.0001452,2]
[423982735,1780534241000,-500.0,0.0001452,2]
[423982724,1780534241000,-500.0,0.0001452,2]
[423982727,1780534241000,-500.0,0.0001452,2]
[423982732,1780534241000,-500.0,0.0001452,2]
[423982725,1780534241000,-500.0,0.0001452,2]
[423982730,1780534241000,-1060.41,0.0001452,2]
[423982728,1780534241000,-5213.07,0.0001452,2]
[423982726,1780534241000,-500.0,0.0001452,2]
[423982729,1780534241000,-500.0,0.0001452,2]
[423982736,1780534241000,-500.0,0.0001452,2]
[423982739,1780534241000,-500.0,0.0001452,2]
[423982738,1780534241000,-500.0,0.0001452,2]
[423982745,1780534241000,-151.0,0.000146,2]
[423982737,1780534241000,-500.0,0.0001452,2]
[423982740,1780534241000,-703.5,0.0001452,2]
[423982742,1780534241000,-676.97,0.0001452,2]
[423982741,1780534241000,-941.91,0.0001452,2]
[423982746,1780534241000,-2966.20784281,0.0001467,2]
[423982747,1780534241000,-151.0,0.000147,2]
[423982749,1780534241000,-352.69110136,0.00014794,2]
[423982744,1780534241000,-500.0,0.0001452,2]
[423982748,1780534241000,-2220.96302437,0.00014752,2]
[423982743,1780534241000,-500.0,0.0001452,2]
[423982750,1780534241000,-222.47528721,0.00014794,2]
[423982695,1780534241000,-500.0,0.00014246,2]
[423982719,1780534241000,-582.14,0.0001452,2]
[423982718,1780534241000,-171.82,0.0001452,2]
[423982731,1780534241000,-500.0,0.0001452,2]
[423982713,1780534241000,-500.0,0.0001452,2]
[423982720,1780534241000,-500.0,0.0001452,2]
[423982697,1780534241000,-500.0,0.00014246,2]
[423982689,1780534241000,-500.0,0.00014246,2]
[423982686,1780534241000,-500.0,0.00014246,2]
[423982692,1780534241000,-500.0,0.00014246,2]
[423982688,1780534241000,-5213.07,0.00014246,2]
[423982694,1780534241000,-500.0,0.00014246,2]
[423982690,1780534241000,-1060.41,0.00014246,2]
[423982691,1780534241000,-500.0,0.00014246,2]
[423982693,1780534241000,-500.0,0.00014246,2]
[423982704,1780534241000,-500.0,0.00014246,2]
[423982709,1780534241000,-500.0,0.0001452,2]
[423982707,1780534241000,-151.0,0.000145,2]
[423982705,1780534241000,-500.0,0.00014246,2]
[423982708,1780534241000,-500.0,0.0001452,2]
[423982696,1780534241000,-500.0,0.00014246,2]
[423982706,1780534241000,-151.0,0.000144,2]
[423982701,1780534241000,-703.5,0.00014246,2]
[423982715,1780534241000,-500.0,0.0001452,2]
[423982716,1780534241000,-500.0,0.0001452,2]
[423982717,1780534241000,-500.0,0.0001452,2]
[423982714,1780534241000,-500.0,0.0001452,2]
[423982712,1780534241000,-500.0,0.0001452,2]
[423982722,1780534241000,-309.37,0.0001452,2]
[423982703,1780534241000,-676.97,0.00014246,2]
[423982702,1780534241000,-941.91,0.00014246,2]
[423982700,1780534241000,-500.0,0.00014246,2]
[423982699,1780534241000,-181.01,0.00014246,2]
[423982710,1780534241000,-500.0,0.0001452,2]
[423982711,1780534241000,-500.0,0.0001452,2]
[423982799,1780534242000,-500.0,0.00014899,2]
[423982798,1780534242000,-508.61413046,0.00014899,2]
[423982796,1780534242000,-500.0,0.00014899,2]
[423982792,1780534242000,-500.0,0.00014899,2]
[423982778,1780534242000,-500.0,0.00014794,2]
[423982793,1780534242000,-579.48983316,0.00014899,2]
[423982782,1780534242000,-3274.2460116,0.00014852,2]
[423982783,1780534242000,-163.8954545,0.00014852,2]
[423982780,1780534242000,-200.0,0.00014799,2]
[423982781,1780534242000,-1368.6719861,0.00014852,2]
[423982779,1780534242000,-500.0,0.00014794,2]
[423982795,1780534242000,-500.0,0.00014899,2]
[423982790,1780534242000,-500.0,0.00014899,2]
[423982794,1780534242000,-500.0,0.00014899,2]
[423982805,1780534242000,-151.0,0.000149,2]
[423982791,1780534242000,-500.0,0.00014899,2]
[423982800,1780534242000,-500.0,0.00014899,2]
[423982801,1780534242000,-500.0,0.00014899,2]
[423982802,1780534242000,-500.0,0.00014899,2]
[423982803,1780534242000,-500.0,0.00014899,2]
[423982812,1780534242000,-372.57376769,0.00014998,2]
[423982811,1780534242000,-500.0,0.00014998,2]
[423982813,1780534242000,-500.0,0.00014998,2]
[423982804,1780534242000,-151.0,0.000149,2]
[423982809,1780534242000,-325.08711468,0.00014945,2]
[423982806,1780534242000,-151.0,0.000149,2]
[423982808,1780534242000,-151.0,0.000149,2]
[423982789,1780534242000,-500.0,0.00014899,2]
[423982797,1780534242000,-500.0,0.00014899,2]
[423982787,1780534242000,-500.0,0.00014899,2]
[423982751,1780534242000,-500.0,0.00014794,2]
[423982786,1780534242000,-500.0,0.00014899,2]
[423982763,1780534242000,-500.0,0.00014794,2]
[423982761,1780534242000,-500.0,0.00014794,2]
[423982762,1780534242000,-500.0,0.00014794,2]
[423982757,1780534242000,-582.14,0.00014794,2]
[423982753,1780534242000,-500.0,0.00014794,2]
[423982758,1780534242000,-500.0,0.00014794,2]
[423982754,1780534242000,-500.0,0.00014794,2]
[423982752,1780534242000,-500.0,0.00014794,2]
[423982756,1780534242000,-326.65032789,0.00014794,2]
[423982755,1780534242000,-496.76244319,0.00014794,2]
[423982760,1780534242000,-500.0,0.00014794,2]
[423982759,1780534242000,-500.0,0.00014794,2]
[423982765,1780534242000,-500.0,0.00014794,2]
[423982774,1780534242000,-500.0,0.00014794,2]
[423982775,1780534242000,-703.5,0.00014794,2]
[423982773,1780534242000,-500.0,0.00014794,2]
[423982807,1780534242000,-151.0,0.000149,2]
[423982776,1780534242000,-941.91,0.00014794,2]
[423982766,1780534242000,-1060.41,0.00014794,2]
[423982767,1780534242000,-500.0,0.00014794,2]
[423982771,1780534242000,-500.0,0.00014794,2]
[423982764,1780534242000,-5213.07,0.00014794,2]
[423982769,1780534242000,-500.0,0.00014794,2]
[423982772,1780534242000,-500.0,0.00014794,2]
[423982770,1780534242000,-500.0,0.00014794,2]
[423982768,1780534242000,-500.0,0.00014794,2]
[423982777,1780534242000,-676.97,0.00014794,2]
[423982784,1780534242000,-4277.6207962,0.00014852,2]
[423982785,1780534242000,-500.0,0.00014898,2]
[423982788,1780534242000,-500.0,0.00014899,2]
[423982810,1780534242000,-188.0,0.00014986,3]
[423982865,1780534242000,-500.0,0.00015068,2]
[423982816,1780534242000,-500.0,0.00014998,2]
[423982851,1780534242000,-554.4,0.00014999,2]
[423982850,1780534242000,-500.0,0.00014999,2]
[423982849,1780534242000,-500.0,0.00014998,2]
[423982853,1780534242000,-50608.799594,0.00015,2]
[423982855,1780534242000,-151.0,0.00015,2]
[423982866,1780534242000,-500.0,0.00015068,2]
[423982857,1780534242000,-151.0,0.00015,2]
[423982856,1780534242000,-151.0,0.00015,2]
[423982854,1780534242000,-151.0,0.00015,2]
[423982864,1780534242000,-500.0,0.00015068,2]
[423982858,1780534242000,-215.34126282,0.00015067,2]
[423982859,1780534242000,-500.0,0.00015068,2]
[423982861,1780534242000,-500.0,0.00015068,2]
[423982848,1780534242000,-500.0,0.00014998,2]
[423982862,1780534242000,-582.14,0.00015068,2]
[423982868,1780534242000,-5213.07,0.00015068,2]
[423982867,1780534242000,-500.0,0.00015068,2]
[423982878,1780534242000,-500.0,0.00015068,2]